bitfinex-derivatives/quotes_SOLF0:USTF0_20251202
["timestamp","ask_amount","ask_price","bid_price","bid_amount"]
[1764697853920,6.4435,139.66,139.64,0.05282761]
[1764697854511,15.97860041,139.66,139.64,0.05282761]
[1764697854812,15.97880161,139.66,139.64,0.05282761]
[1764697856712,11.11272944,139.66,139.64,0.05282761]
[1764697857614,15.97880161,139.66,139.64,0.05282761]
[1764697858414,6.4435,139.66,139.64,0.05282761]
[1764697858715,11.11272944,139.66,139.64,0.05282761]
[1764697860512,15.97915501,139.66,139.64,0.05282761]
[1764697862313,11.11272944,139.66,139.64,0.05282761]
[1764697862518,2.98486979,139.65,139.64,0.05282761]
[1764697863216,100.2563,139.63,139.57,3.27]
[1764697863418,100.2592,139.62,139.55,3.27]
[1764697863619,2.98486979,139.6,139.55,3.27]
[1764697864117,0.04796236,139.59,139.56,3.31788793]
[1764697864319,6.49466236,139.59,139.56,3.31788793]
[1764697864513,0.04796236,139.59,139.56,3.31788793]
[1764697864922,100.2189,139.68,139.58,5.03607553]
[1764697865122,64.78486979,139.66,139.6,3.27]
[1764697865617,2.98486979,139.64,139.57,3.27]
[1764697865815,2.98486979,139.64,139.56,2.98486979]
[1764697865816,61.8,139.63,139.59,3.27]
[1764697866014,6.49677355,139.61,139.59,3.3168034]
[1764697866417,0.05107355,139.61,139.59,3.3168034]
[1764697868525,6.49677355,139.61,139.59,3.3168034]
[1764697871128,6.49677355,139.61,139.59,0.0468034]
[1764697871527,6.49677355,139.61,139.59,3.2868034]
[1764697873129,6.4468,139.59,139.52,3.24]
[1764697873429,64.78486979,139.6,139.55,1.76577062]
[1764697873430,2.98486979,139.58,139.55,1.76577062]
[1764697873729,9.43296979,139.56,139.52,3.24]
[1764697874227,0.04556188,139.55,139.53,0.053465]
[1764697874634,0.04556188,139.55,139.53,3.293465]
[1764697875522,61.8,139.6,139.54,3.24]
[1764697875725,6.448,139.56,139.53,3.293465]
[1764697875932,2.98486979,139.57,139.53,3.293465]
[1764697876537,0.04892326,139.56,139.53,3.293465]
[1764697876937,0.04892326,139.56,139.53,0.053465]
[1764697877742,0.04892326,139.56,139.53,3.293465]
[1764697878642,0.04892326,139.56,139.53,0.053465]
[1764697879348,6.49702326,139.56,139.53,0.053465]
[1764697880642,9.43356979,139.55,139.53,0.053465]
[1764697882139,6.4506,139.51,139.47,3.24]
[1764697882346,9.43546979,139.51,139.47,3.24]
[1764697882538,6.4506,139.51,139.47,3.24]
[1764697883143,0.05186085,139.5,139.48,0.04960613]
[1764697883347,0.05186085,139.5,139.48,3.28960613]
[1764697883542,6.50266085,139.5,139.48,3.28960613]
[1764697884848,0.05186085,139.5,139.48,3.28960613]
[1764697886343,0.05186085,139.5,139.48,0.04960613]
[1764697887358,3.03673064,139.5,139.48,0.04960613]
[1764697888450,3.03673064,139.5,139.48,3.28960613]
[1764697888451,0.05186085,139.5,139.48,3.28960613]
[1764697892356,0.05186085,139.5,139.48,0.04960613]
[1764697893060,3.03673064,139.5,139.48,0.04960613]
[1764697893860,9.48753064,139.5,139.48,0.04960613]
[1764697894157,100.3545,139.49,139.41,3.1]
[1764697894364,2.98486979,139.44,139.41,3.1]
[1764697894758,9.43856979,139.44,139.41,3.1]
[1764697895152,9.49112551,139.44,139.41,3.15490748]
[1764697895348,0.05255572,139.44,139.41,3.15490748]
[1764697895865,3.03742551,139.44,139.41,0.05490748]
[1764697896062,3.03742551,139.44,139.41,3.15490748]
[1764697897064,3.03742551,139.44,139.41,0.05490748]
[1764697897565,6.454,139.43,139.41,0.05490748]
[1764697900463,68.314,139.43,139.41,0.05490748]
[1764697904666,2.98486979,139.42,139.41,0.05490748]
[1764697907161,6.454,139.43,139.41,0.05490748]
[1764697907366,68.314,139.43,139.41,0.05490748]
[1764697907563,71.29886979,139.43,139.41,0.05490748]
[1764697910070,100.432,139.38,139.31,3.24]
[1764697910263,2.98486979,139.36,139.33,1.76374455]
[1764697910558,2.98486979,139.34,139.24,3.24]
[1764697910760,61.88,139.34,139.29,3.24]
[1764697911163,0.0488514,139.33,139.31,3.24]
[1764697912064,61.88,139.36,139.32,3.24]
[1764697913070,0.04649689,139.35,139.32,3.24]
[1764697921267,0.04649689,139.35,139.3,0.05204107]
[1764697921268,0.04649689,139.35,139.3,3.29204107]
[1764697925202,0.04649689,139.35,139.32,3.24]
[1764697925978,100.3673,139.47,139.35,3.24]
[1764697926181,61.9,139.46,139.35,3.24]
[1764697926579,6.4536,139.44,139.36,1.76961706]
[1764697926883,183.7884,139.46,139.37,3.24]
[1764697927072,0.05509475,139.41,139.37,3.24]
[1764697927382,0.05509475,139.41,139.4,0.04673346]
[1764697927590,0.05509475,139.41,139.4,3.28673346]
[1764697928280,61.9,139.49,139.41,3.24]
[1764697928476,68.3514,139.49,139.41,3.24]
[1764697928780,68.3514,139.49,139.43,3.17]
[1764697928781,61.9,139.49,139.43,3.17]
[1764697929166,0.0477092,139.47,139.45,3.22269269]
[1764697929769,0.0477092,139.47,139.45,0.05269269]
[1764697930170,100.3746,139.46,139.38,3.17]
[1764697930374,105.04068771,139.46,139.38,3.17]
[1764697930581,100.3746,139.46,139.38,3.17]
[1764697930785,105.04192994,139.46,139.38,3.17]
[1764697931077,0.05375797,139.43,139.41,0.05114779]
[1764697931378,0.05375797,139.43,139.41,3.22114779]
[1764697935481,100.3342,139.52,139.43,3.17]
[1764697935684,61.88,139.51,139.43,3.17]
[1764697935884,61.88,139.51,139.45,3.17]
[1764697936390,0.05024905,139.49,139.47,0.05147026]
[1764697936784,0.05024905,139.49,139.47,3.22147026]
[1764697938989,7.94184905,139.49,139.47,0.05147026]
[1764697939186,162.2227,139.48,139.41,3.17]
[1764697939686,61.9,139.49,139.43,3.17]
[1764697939995,112.27842266,139.54,139.45,3.17]
[1764697939996,61.9,139.51,139.45,3.17]
[1764697940177,0.05143456,139.47,139.45,3.21663574]
[1764697940378,0.05143456,139.47,139.45,0.04663574]
[1764697940576,62.0,139.46,139.45,0.04663574]
[1764697944488,180.0,139.46,139.45,0.04663574]
[1764697946379,180.0,139.46,139.39,3.17]
[1764697946380,100.3823,139.45,139.39,3.17]
[1764697946788,100.3962,139.43,139.36,9.82608592]
[1764697946998,6.4551,139.41,139.36,3.17]
[1764697947192,100.4109,139.41,139.36,3.17]
[1764697947386,61.96,139.42,139.37,0.04737768]
[1764697947581,0.04702604,139.4,139.37,3.21737768]
[1764697949799,6.50252604,139.4,139.37,3.21737768]
[1764697950097,0.04702604,139.4,139.37,3.21737768]
[1764697950296,6.4559,139.39,139.37,0.04737768]
[1764697951305,6.4559,139.39,139.37,3.21737768]
[1764697951799,6.4559,139.39,139.37,0.04737768]
[1764697952099,6.4559,139.39,139.37,3.21737768]
[1764697953298,6.4559,139.39,139.37,0.04737768]
[1764697953504,124.4559,139.39,139.37,0.04737768]
[1764697954592,6.4559,139.39,139.37,3.05737768]
[1764697954904,0.04702604,139.4,139.37,3.05737768]
[1764697956107,6.4559,139.39,139.37,3.05737768]
[1764697956405,0.04702604,139.4,139.37,3.05737768]
[1764697960503,61.94,139.45,139.39,3.22]
[1764697961304,218.3549,139.49,139.39,3.22]
[1764697961507,0.05148927,139.45,139.43,3.27189137]
[1764697961910,0.05148927,139.45,139.43,0.05189137]
[1764697962300,0.05148927,139.45,139.43,3.27189137]
[1764697964805,0.05148927,139.45,139.43,0.05189137]
[1764697967221,6.50468927,139.45,139.43,0.05189137]
[1764697973018,6.50468927,139.45,139.43,3.27189137]
[1764697973019,0.05148927,139.45,139.43,3.27189137]
[1764697974615,0.05148927,139.45,139.43,0.05189137]
[1764697974819,1.49148927,139.45,139.43,0.05189137]
[1764697975018,21.51,139.43,139.37,3.22]
[1764697975219,61.96,139.42,139.37,3.22]
[1764697975417,61.96,139.42,139.37,9.87608592]
[1764697975619,61.96,139.42,139.37,3.22]
[1764697975819,61.96,139.42,139.38,3.22]
[1764697976021,0.05004618,139.41,139.39,0.04662403]
[1764697976314,0.05004618,139.41,139.39,3.26662403]
[1764697981624,0.05004618,139.41,139.39,0.04662403]
[1764697981923,0.05004618,139.41,139.39,3.26662403]
[1764697982228,6.4554,139.4,139.39,0.04662403]
[1764697982526,0.05004618,139.41,139.39,3.26662403]
[1764697983229,6.50494618,139.41,139.39,3.26662403]
[1764697984730,0.05004618,139.41,139.39,3.26662403]
[1764697985032,0.05004618,139.41,139.39,0.04662403]
[1764697985730,6.50504618,139.41,139.39,0.04662403]
[1764697987725,6.50504618,139.41,139.39,3.26662403]
[1764697988323,6.50504618,139.41,139.39,0.04662403]
[1764697989130,0.05004618,139.41,139.39,3.05662403]
[1764697989731,218.3847,139.45,139.39,3.05662403]
[1764697989732,325.71987507,139.5,139.4,3.01]
[1764697989934,100.3531,139.49,139.41,9.70567215]
[1764697990138,100.3531,139.49,139.41,3.01]
[1764697990139,121.8631,139.49,139.41,3.01]
[1764697990326,6.4523,139.47,139.41,9.70567215]
[1764697990629,121.8631,139.49,139.41,9.70567215]
[1764697990931,0.05287939,139.45,139.43,3.05886157]
[1764697993924,6.50597939,139.45,139.43,0.04886157]
[1764697994129,28.01597939,139.45,139.43,0.04886157]
[1764697996235,139.51,139.44,139.43,0.04886157]
[1764697998332,6.50597939,139.45,139.43,0.04886157]
[1764697998933,28.01597939,139.45,139.43,0.04886157]
[1764698003142,0.05287939,139.45,139.43,0.04886157]
[1764698003344,0.05287939,139.45,139.43,3.05886157]
[1764698004241,0.05287939,139.45,139.43,0.04886157]
[1764698004644,0.05287939,139.45,139.43,3.05886157]
[1764698005239,6.64712974,139.53,139.45,3.01]
[1764698005437,2.99346693,139.52,139.46,6.69567215]
[1764698006345,301.7518,139.54,139.46,6.69567215]
[1764698006346,6.49791736,139.5,139.48,0.053205]
[1764698009245,0.04711736,139.5,139.48,0.053205]
[1764698010646,6.49791736,139.5,139.48,0.053205]
[1764698012745,6.453,139.45,139.42,3.01]
[1764698013147,68.3725,139.47,139.42,3.01]
[1764698013342,118.0,139.49,139.43,3.21]
[1764698013644,61.92,139.5,139.45,0.05169987]
[1764698013851,0.05143009,139.47,139.45,3.26169987]
[1764698014451,6.50353009,139.47,139.45,3.26169987]
[1764698014952,0.05143009,139.47,139.45,3.26169987]
[1764698015751,6.50353009,139.47,139.45,3.26169987]
[1764698016352,0.05143009,139.47,139.45,3.26169987]
[1764698019154,118.0,139.52,139.45,3.26169987]
[1764698019547,6.4507,139.51,139.46,3.1]
[1764698019749,118.0,139.52,139.49,3.1]
[1764698019948,0.04569889,139.52,139.49,3.14698123]
[1764698020546,0.04569889,139.52,139.5,3.1]
[1764698021249,0.04569889,139.52,139.51,3.1]
[1764698021458,0.04569889,139.52,139.5,3.1]
[1764698023654,6.448,139.56,139.5,3.1]
[1764698024546,0.05103441,139.54,139.5,3.1]
[1764698026448,0.05103441,139.54,139.51,3.1]
[1764698028350,0.05103441,139.54,139.53,3.1]
[1764698029456,118.0,139.6,139.53,3.1]
[1764698029756,118.0,139.63,139.58,3.1]
[1764698030344,6.4452,139.62,139.58,3.1]
[1764698030552,6.48503205,139.62,139.59,3.15061217]
[1764698032046,0.03983205,139.62,139.59,3.15061217]
[1764698034353,6.48513205,139.62,139.59,0.05061217]
[1764698034861,6.48513205,139.62,139.59,3.15061217]
[1764698037261,0.03983205,139.62,139.59,3.15061217]
[1764698041468,61.84,139.69,139.59,3.15061217]
[1764698041663,61.84,139.69,139.59,3.1]
[1764698042060,169.05361042,139.69,139.59,3.1]
[1764698042261,190.54361042,139.69,139.59,3.1]
[1764698042467,100.2169,139.68,139.63,0.04637528]
[1764698042667,6.4439,139.65,139.63,0.04637528]
[1764698046272,6.4452,139.62,139.57,3.1]
[1764698047176,0.04637528,139.61,139.59,3.1]
[1764698048572,6.4426,139.68,139.59,3.1]
[1764698049069,100.2094,139.69,139.59,3.1]
[1764698049273,239.7103,139.68,139.59,3.1]
[1764698049475,100.2233,139.67,139.59,3.1]
[1764698049663,100.2233,139.67,139.62,0.05344562]
[1764698049869,6.4443,139.64,139.62,0.05344562]
[1764698050271,6.4434,139.66,139.63,3.04]
[1764698050470,6.4434,139.66,139.63,0.05525099]
[1764698050678,6.4434,139.66,139.63,3.09525099]
[1764698050880,6.4434,139.66,139.63,0.05525099]
[1764698051079,6.4439,139.65,139.63,0.05525099]
[1764698051271,306.18463,139.69,139.63,0.05525099]
[1764698051676,6.4434,139.66,139.63,0.05525099]
[1764698052274,6.4434,139.66,139.63,3.09525099]
[1764698054177,6.4439,139.65,139.63,0.05525099]
[1764698054584,306.18463,139.69,139.63,0.05525099]
[1764698054778,118.0,139.68,139.63,0.05525099]
[1764698055183,6.4435,139.66,139.63,0.05525099]
[1764698055372,6.4435,139.66,139.63,3.09525099]
[1764698056480,118.0,139.68,139.63,3.09525099]
[1764698056675,6.4439,139.65,139.63,0.05525099]
[1764698057675,68.2439,139.65,139.63,0.05525099]
[1764698058477,61.8,139.65,139.63,0.05525099]
[1764698058879,68.2439,139.65,139.63,0.05525099]
[1764698060088,61.8,139.65,139.63,3.09525099]
[1764698062083,68.2428,139.68,139.63,3.09525099]
[1764698065081,68.2424,139.68,139.63,3.09525099]
[1764698065280,61.8,139.68,139.63,3.09525099]
[1764698065886,118.0,139.71,139.63,3.09525099]
[1764698066086,61.78,139.71,139.63,3.09525099]
[1764698066286,61.78,139.71,139.64,3.04]
[1764698066486,6.4424,139.68,139.66,3.09416995]
[1764698067185,68.2214,139.71,139.66,3.09416995]
[1764698067385,61.78,139.71,139.66,3.09416995]
[1764698071295,61.78,139.71,139.67,3.04]
[1764698071495,61.78,139.71,139.68,3.04]
[1764698072786,68.2211,139.71,139.68,3.04]
[1764698075194,61.78,139.71,139.68,3.04]
[1764698076398,100.1452,139.78,139.69,3.1]
[1764698076606,161.9052,139.78,139.72,0.05049032]
[1764698078398,6.4392,139.76,139.72,3.15049032]
[1764698078800,66.42283,139.78,139.72,3.15049032]
[1764698079009,72.86063,139.78,139.72,3.15049032]
[1764698080003,61.76,139.78,139.72,3.15049032]
[1764698085896,11.10013,139.8,139.72,3.15049032]
[1764698086099,4.66283,139.82,139.72,3.15049032]
[1764698086304,4.66283,139.82,139.76,0.04948373]
[1764698086500,6.436,139.82,139.76,0.04948373]
[1764698086702,6.436,139.82,139.76,3.25948373]
[1764698087203,66.40283,139.83,139.76,3.25948373]
[1764698087515,61.74,139.83,139.78,3.21]
[1764698087804,61.74,139.83,139.75,11.28553301]
[1764698087805,61.74,139.83,139.8,3.21]
[1764698088114,61.74,139.88,139.8,3.21]
[1764698088409,61.74,139.88,139.83,0.0456873]
[1764698088611,68.1733,139.88,139.83,0.0456873]
[1764698089113,61.74,139.88,139.83,0.0456873]
[1764698089301,11.09663,139.87,139.83,0.0456873]
[1764698089500,6.4338,139.87,139.83,3.2556873]
[1764698089702,61.74,139.88,139.83,3.2556873]
[1764698089905,68.1733,139.88,139.83,3.2556873]
[1764698090110,68.1733,139.88,139.83,0.0456873]
[1764698090317,61.74,139.88,139.83,0.0456873]
[1764698090912,6.4339,139.87,139.83,0.0456873]
[1764698092910,6.4342,139.86,139.83,0.0456873]
[1764698093511,68.1735,139.88,139.83,3.2556873]
[1764698093712,61.74,139.88,139.83,3.2556873]
[1764698095319,68.1733,139.88,139.83,3.2556873]
[1764698095614,61.74,139.88,139.83,3.2556873]
[1764698096214,1.24436816,139.92,139.83,3.2556873]
[1764698096423,4.66283,139.95,139.86,3.26440931]
[1764698096606,72.79313,139.95,139.89,0.05280994]
[1764698096810,66.36283,139.95,139.89,0.05280994]
[1764698097121,6.4306,139.94,139.89,0.05280994]
[1764698097312,66.36283,139.95,139.89,0.05280994]
[1764698097823,6.4311,139.93,139.89,0.05280994]
[1764698098005,4.66283,139.92,139.89,0.05280994]
[1764698098206,4.66283,139.9,139.89,0.05280994]
[1764698098406,6.4332,139.88,139.83,3.21]
[1764698098612,4.66283,139.88,139.79,3.21]
[1764698098806,100.0699,139.89,139.79,3.21]
[1764698098807,6.4343,139.86,139.79,3.21]
[1764698099008,121.5599,139.89,139.76,4.66283]
[1764698099009,104.73273,139.89,139.8,4.95536065]
[1764698099208,104.73273,139.89,139.8,3.21]
[1764698099416,0.04542033,139.86,139.83,0.0497079]
[1764698099820,6.48002033,139.86,139.83,0.0497079]
[1764698100313,66.36283,139.85,139.83,0.0497079]
[1764698100614,72.79783,139.85,139.83,0.0497079]
[1764698102528,100.109,139.83,139.74,3.21]
[1764698102727,4.66283,139.81,139.75,1.745485]
[1764698102919,61.7,139.81,139.76,3.21]
[1764698103122,72.79963,139.81,139.76,3.21]
[1764698103426,4.71720666,139.8,139.77,0.05473684]
[1764698103726,0.05470284,139.8,139.77,3.25749061]
[1764698103927,0.05470284,139.8,139.77,0.04749061]
[1764698104515,0.05470284,139.8,139.77,3.25749061]
[1764698107124,3.03318226,139.8,139.77,0.04749061]
[1764698107319,9.47018226,139.8,139.77,0.04749061]
[1764698107512,3.03318226,139.8,139.77,3.25749061]
[1764698108119,0.05470284,139.8,139.77,0.04749061]
[1764698109419,0.05470284,139.8,139.77,3.30749061]
[1764698109614,2.97847942,139.79,139.77,0.04749061]
[1764698109923,6.4383,139.77,139.72,3.26]
[1764698110128,2.97847942,139.79,139.7,6.62270301]
[1764698110428,2.97847942,139.79,139.69,6.62270301]
[1764698110429,100.1558,139.77,139.69,6.62270301]
[1764698110730,100.1558,139.77,139.7,1.7550769]
[1764698110920,6.4403,139.73,139.72,0.04873614]
[1764698111526,9.41877942,139.73,139.72,0.04873614]
[1764698112414,6.4403,139.73,139.72,0.04873614]
[1764698112828,75.17840096,139.75,139.72,0.04873614]
[1764698113020,68.73900096,139.75,139.72,0.04873614]
[1764698113329,61.75004017,139.75,139.72,0.04873614]
[1764698113729,6.4397,139.74,139.72,0.04873614]
[1764698114517,61.75004017,139.75,139.72,0.04873614]
[1764698115622,61.75004017,139.75,139.72,3.30873614]
[1764698115623,0.05004017,139.75,139.72,3.30873614]
[1764698117125,0.05004017,139.75,139.72,0.04873614]
[1764698117325,107.16986079,139.73,139.68,6.62270301]
[1764698117626,100.2683,139.61,139.54,8.88700958]
[1764698117926,68.68896079,139.61,139.55,1.76502435]
[1764698118118,6.4465,139.6,139.54,1.76502435]
[1764698118316,0.0513005,139.58,139.56,0.05450592]
[1764698122736,6.4986005,139.58,139.56,0.05450592]
[1764698122935,0.0513005,139.58,139.56,0.05450592]
[1764698123928,0.0513005,139.58,139.56,3.31450592]
[1764698124128,0.0513005,139.58,139.56,0.05450592]
[1764698126629,6.4987005,139.58,139.56,0.05450592]
[1764698131332,0.0513005,139.58,139.56,0.05450592]
[1764698132430,6.4985005,139.58,139.56,0.05450592]
[1764698134743,61.78,139.57,139.56,0.05450592]
[1764698138152,162.0792,139.57,139.49,3.26]
[1764698139252,162.0792,139.57,139.52,0.04827103]
[1764698139253,0.04644479,139.54,139.52,0.04827103]
[1764698139754,6.49564479,139.54,139.52,0.04827103]
[1764698141555,0.04644479,139.54,139.52,3.02827103]
[1764698142258,0.04644479,139.54,139.52,0.04827103]
[1764698143353,6.49544479,139.54,139.52,0.04827103]
[1764698143969,0.04644479,139.54,139.52,3.02827103]
[1764698144261,61.8,139.59,139.52,3.02827103]
[1764698144470,6.4471,139.58,139.52,2.98]
[1764698144654,61.8,139.59,139.52,2.98]
[1764698145165,0.05470673,139.57,139.54,0.05397485]
[1764698145366,0.05470673,139.57,139.54,3.03397485]
[1764698146560,6.448,139.56,139.54,0.05397485]
[1764698146961,61.8,139.55,139.54,0.05397485]
[1764698150457,61.8,139.55,139.49,2.98]
[1764698151566,0.04968061,139.53,139.51,3.02764343]
[1764698151768,0.04968061,139.53,139.51,3.02683619]
[1764698161572,2.98914426,139.56,139.51,3.02683619]
[1764698162369,6.4485,139.55,139.52,2.98]
[1764698162564,3.03697481,139.55,139.51,8.93384577]
[1764698162773,2.98914426,139.53,139.51,3.02683619]
[1764698162966,2.98914426,139.53,139.51,11.91384577]
[1764698163167,3.03697481,139.55,139.52,2.98]
[1764698163771,2.98914426,139.53,139.51,0.04683619]
[1764698164865,6.4498,139.52,139.51,0.04683619]
[1764698166975,11.12215589,139.52,139.51,0.04683619]
[1764698167682,6.4498,139.52,139.51,0.04683619]
[1764698169285,6.4498,139.52,139.47,2.98]
[1764698169286,6.451,139.5,139.47,2.98]
[1764698169980,6.451,139.5,139.47,11.86700958]
[1764698170178,66.47235589,139.54,139.47,2.98]
[1764698170380,0.04781923,139.52,139.49,3.05038888]
[1764698171577,6.49761923,139.52,139.49,3.05038888]
[1764698171979,0.04781923,139.52,139.49,0.05038888]
[1764698172179,6.4504,139.51,139.49,3.05038888]
[1764698173375,6.4504,139.51,139.49,0.05038888]
[1764698176590,0.04781923,139.52,139.49,3.05038888]
[1764698177393,6.49771923,139.52,139.49,3.05038888]
[1764698177594,0.04781923,139.52,139.49,3.05038888]
[1764698179184,0.04781923,139.52,139.49,9.74159724]
[1764698179494,0.04781923,139.52,139.5,3.0]
[1764698180090,6.49791923,139.52,139.5,3.0]
[1764698180992,0.04781923,139.52,139.5,9.69120836]
[1764698181301,0.04781923,139.52,139.51,3.0]
[1764698182788,0.04781923,139.52,139.51,9.69120836]
[1764698186099,0.04781923,139.52,139.51,3.0]
[1764698186403,0.04781923,139.52,139.51,9.69244129]
[1764698187389,61.8,139.54,139.52,3.0]
[1764698187585,61.8,139.54,139.53,9.69190718]
[1764698188101,61.8,139.54,139.53,9.69145263]
[1764698190591,61.8,139.54,139.53,6.69145263]
[1764698190894,68.249,139.54,139.52,9.74503677]
[1764698191397,68.249,139.54,139.52,6.74503677]
[1764698191697,61.8,139.54,139.52,6.74503677]
[1764698192697,68.2489,139.54,139.52,6.74503677]
[1764698193394,61.8,139.54,139.52,6.74503677]
[1764698194699,68.2489,139.54,139.52,6.74503677]
[1764698195594,61.8,139.54,139.52,6.74503677]
[1764698195799,61.8,139.54,139.53,3.17]
[1764698196392,61.8,139.54,139.52,9.91503677]
[1764698197400,61.8,139.54,139.52,6.74503677]
[1764698197791,68.2489,139.54,139.52,6.74503677]
[1764698199797,68.2489,139.54,139.52,0.05358414]
[1764698199997,68.2489,139.54,139.52,6.74503677]
[1764698201398,68.2489,139.54,139.52,0.05358414]
[1764698201399,72.92125589,139.54,139.52,0.05358414]
[1764698201903,68.2489,139.54,139.52,0.05358414]
[1764698204602,68.2489,139.54,139.52,3.09358414]
[1764698204794,0.05338973,139.55,139.52,3.09358414]
[1764698205106,0.05338973,139.55,139.52,6.74503677]
[1764698205901,61.85338973,139.55,139.52,6.74503677]
[1764698206409,6.449,139.54,139.52,6.74503677]
[1764698209003,6.449,139.54,139.52,9.78503677]
[1764698209210,89.79188973,139.55,139.52,9.78503677]
[1764698209413,61.85338973,139.55,139.52,9.78503677]
[1764698209607,61.85338973,139.55,139.53,3.04]
[1764698210008,61.85338973,139.55,139.52,9.78503677]
[1764698210814,6.4489,139.54,139.52,0.05358414]
[1764698212313,6.4489,139.54,139.52,6.74503677]
[1764698212914,6.4489,139.54,139.52,0.05358414]
[1764698213516,27.9389,139.54,139.52,0.05358414]
[1764698215008,6.4489,139.54,139.52,0.05358414]
[1764698215402,61.85338973,139.55,139.52,9.78503677]
[1764698215801,68.30178973,139.55,139.52,9.78503677]
[1764698217710,6.4489,139.54,139.52,9.78503677]
[1764698217910,6.4489,139.54,139.52,0.05358414]
[1764698218215,61.85338973,139.55,139.52,0.05358414]
[1764698218411,6.4493,139.53,139.52,0.05358414]
[1764698221216,6.4509,139.5,139.47,6.69145263]
[1764698221410,61.78,139.5,139.48,3.04]
[1764698221609,61.78,139.53,139.5,3.04]
[1764698221811,61.78,139.53,139.51,9.74243585]
[1764698222124,61.83364488,139.53,139.51,9.79465362]
[1764698222711,61.83364488,139.53,139.52,3.04]
[1764698223223,61.83364488,139.53,139.51,9.79465362]
[1764698223416,61.83364488,139.53,139.51,6.75465362]
[1764698223618,61.83364488,139.53,139.51,0.05221777]
[1764698224021,68.28304488,139.53,139.51,0.05221777]
[1764698227510,61.83364488,139.53,139.51,9.79465362]
[1764698227822,61.83364488,139.53,139.51,6.75465362]
[1764698228409,64.82371366,139.53,139.51,6.75465362]
[1764698228622,64.82371366,139.53,139.51,0.05221777]
[1764698228818,68.28314488,139.53,139.51,0.05221777]
[1764698229026,71.27321366,139.53,139.51,0.05221777]
[1764698232438,210.76321366,139.53,139.51,0.05221777]
[1764698233131,139.49,139.52,139.51,0.05221777]
[1764698233633,139.49,139.52,139.48,6.70243585]
[1764698233634,239.8239,139.52,139.48,6.70243585]
[1764698233828,2.99006878,139.5,139.48,6.70243585]
[1764698234024,68.2312,139.49,139.48,6.70243585]
[1764698234431,68.2312,139.49,139.47,6.70243585]
[1764698234630,68.28075557,139.49,139.47,6.75727219]
[1764698234830,68.28075557,139.49,139.47,0.05483634]
[1764698235234,68.28075557,139.49,139.47,3.07483634]
[1764698235628,68.28075557,139.49,139.47,0.05483634]
[1764698236435,61.82955557,139.49,139.47,9.77727219]
[1764698236630,61.82955557,139.49,139.48,3.02]
[1764698237139,61.82955557,139.49,139.47,3.07483634]
[1764698242134,61.82955557,139.49,139.47,9.77727219]
[1764698242939,61.82955557,139.49,139.47,6.75727219]
[1764698243234,68.28085557,139.49,139.47,9.77727219]
[1764698243442,61.82955557,139.49,139.47,9.77727219]
[1764698243839,61.82955557,139.49,139.48,3.02]
[1764698245846,61.82955557,139.49,139.48,9.72243585]
[1764698246045,61.82955557,139.49,139.48,3.02]
[1764698248241,68.28095557,139.49,139.47,0.05483634]
[1764698248450,71.27102435,139.49,139.47,0.05483634]
[1764698249243,6.4516,139.48,139.47,0.05483634]
[1764698249942,6.453,139.45,139.44,6.70243585]
[1764698250247,61.78,139.45,139.42,6.70243585]
[1764698250542,6.454,139.43,139.41,9.72243585]
[1764698250740,6.454,139.43,139.41,6.70243585]
[1764698250946,6.50177553,139.43,139.41,9.77073169]
[1764698251445,0.04777553,139.43,139.42,3.02]
[1764698254642,0.04777553,139.43,139.42,11.90700958]
[1764698255249,6.4522,139.47,139.43,3.22]
[1764698255452,6.4522,139.47,139.45,3.22]
[1764698256050,6.4522,139.47,139.44,9.90541211]
[1764698256247,6.50369546,139.47,139.44,9.95670309]
[1764698256457,0.05149546,139.47,139.45,3.22]
[1764698258040,0.05149546,139.47,139.45,9.90541211]
[1764698262948,6.50369546,139.47,139.45,9.90541211]
[1764698265062,6.4527,139.46,139.44,6.73670309]
[1764698265246,9.44276878,139.46,139.44,0.05129098]
[1764698265454,30.93276878,139.46,139.44,0.05129098]
[1764698267259,121.8715,139.45,139.41,6.68541211]
[1764698267459,2.99006878,139.43,139.4,6.68541211]
[1764698267649,61.78,139.44,139.41,3.07]